bitfinex/quotes_BTCUSD_20241208
["timestamp","ask_amount","ask_price","bid_price","bid_amount"]
[1733630773795,0.24398751,100030.0,100020.0,3e-07]
[1733630774019,0.23998751,100030.0,100020.0,3e-07]
[1733630774224,0.24898751,100030.0,100020.0,3e-07]
[1733630781155,0.25072231,100030.0,100020.0,3e-07]
[1733630783592,0.19146647,100030.0,100020.0,0.1235003]
[1733630783798,0.1506928,100030.0,100020.0,0.1235003]
[1733630783997,0.15194252,100030.0,100020.0,0.1235003]
[1733630784534,0.15194252,100030.0,100020.0,0.1135003]
[1733630785131,0.14894252,100030.0,100020.0,0.1135003]
[1733630785336,0.1476928,100030.0,100020.0,0.1135003]
[1733630785864,0.1416928,100030.0,100020.0,0.1135003]
[1733630786087,0.14494252,100030.0,100020.0,0.1135003]
[1733630786490,0.1416928,100030.0,100020.0,0.1135003]
[1733630786729,0.1426928,100030.0,100020.0,0.1135003]
[1733630787215,0.1416928,100030.0,100020.0,0.1135003]
[1733630788018,0.1416928,100030.0,100020.0,0.1365003]
[1733630788227,0.14294251,100030.0,100020.0,0.1365003]
[1733630789665,0.1416928,100030.0,100020.0,0.1365003]
[1733630789969,0.18246647,100030.0,100020.0,0.1365003]
[1733630790110,0.18246647,100030.0,100020.0,0.2764723]
[1733630790289,0.18246647,100030.0,100020.0,0.1365003]
[1733630791590,0.04250847,100030.0,100020.0,0.2764723]
[1733630792010,0.18246647,100030.0,100020.0,0.1365003]
[1733630792227,0.18246647,100030.0,100020.0,0.2764723]
[1733630792434,0.18246647,100030.0,100020.0,0.1365003]
[1733630792844,0.18246647,100030.0,100020.0,0.1385003]
[1733630793496,0.18246647,100030.0,100020.0,0.1383677]
[1733630793702,0.18246647,100030.0,100020.0,0.1403677]
[1733630793913,0.0017348,100030.0,100020.0,0.2793397]
[1733630794128,0.04250847,100030.0,100020.0,0.2833397]
[1733630794343,0.18246647,100030.0,100020.0,0.2833397]
[1733630794565,0.1416928,100030.0,100020.0,0.2833397]
[1733630795721,0.0017348,100030.0,100020.0,0.358742]
[1733630796294,0.0017348,100030.0,100020.0,0.53417381]
[1733630796502,0.0017348,100030.0,100020.0,1.13789734]
[1733630796701,0.0017348,100030.0,100020.0,1.61776076]
[1733630797011,0.0017348,100030.0,100020.0,1.61770049]
[1733630798255,0.0017348,100030.0,100020.0,1.39340964]
[1733630800131,0.0017348,100030.0,100020.0,1.21397696]
[1733630801207,0.0017348,100030.0,100020.0,0.95840439]
[1733630801412,0.18243787,100050.0,100040.0,0.5913486]
[1733630801413,0.0017342,100050.0,100040.0,0.5913486]
[1733630801632,0.0017342,100050.0,100040.0,0.69137811]
[1733630801862,0.0017342,100050.0,100040.0,0.7838303]
[1733630802063,0.0017342,100050.0,100040.0,0.708428]
[1733630802295,0.0017342,100050.0,100040.0,0.69417423]
[1733630802921,0.0017342,100050.0,100040.0,0.61877193]
[1733630803133,0.0017342,100050.0,100040.0,0.69417423]
[1733630803833,0.0027342,100050.0,100040.0,0.69917423]
[1733630804741,0.0037342,100050.0,100040.0,0.71640056]
[1733630805149,0.0037342,100050.0,100040.0,0.76640056]
[1733630805357,0.0037342,100050.0,100040.0,0.85605663]
[1733630805559,0.0037342,100050.0,100040.0,0.76640056]
[1733630805762,0.0037342,100050.0,100040.0,0.85605663]
[1733630806206,0.0037342,100050.0,100040.0,0.78648814]
[1733630807558,0.0037342,100050.0,100040.0,0.63568354]
[1733630807768,0.0037342,100050.0,100040.0,0.78648814]
[1733630808424,0.0037342,100050.0,100040.0,0.79651231]
[1733630811245,0.00184994,100060.0,100050.0,0.44103]
[1733630811469,0.00184994,100060.0,100050.0,0.66922042]
[1733630812246,0.00184994,100060.0,100050.0,0.67844675]
[1733630812440,0.00184994,100060.0,100050.0,0.68044675]
[1733630812643,0.00184994,100060.0,100050.0,0.75584905]
[1733630812841,0.00184994,100060.0,100050.0,0.75984905]
[1733630813102,0.00184994,100060.0,100050.0,0.8491836]
[1733630813329,0.00184994,100060.0,100050.0,0.86494905]
[1733630813813,0.0017346,100070.0,100060.0,0.51193093]
[1733630814014,0.01093547,100090.0,100070.0,0.22109]
[1733630814229,0.01093547,100090.0,100080.0,0.2152903]
[1733630815286,0.01093547,100090.0,100080.0,0.21799201]
[1733630815487,0.01493547,100090.0,100080.0,0.21799201]
[1733630815721,0.01493547,100090.0,100080.0,0.24099201]
[1733630815876,0.01693547,100090.0,100080.0,0.24099201]
[1733630819424,0.01693547,100090.0,100080.0,0.34102152]
[1733630819673,0.01693547,100090.0,100080.0,0.41642382]
[1733630819842,0.01693547,100090.0,100080.0,0.34102152]
[1733630820801,0.01693547,100090.0,100080.0,0.16558971]
[1733630821032,0.09913547,100090.0,100080.0,0.16558971]
[1733630822980,0.09913547,100090.0,100080.0,0.24099201]
[1733630823409,0.01693547,100090.0,100080.0,0.24099201]
[1733630823614,0.01693547,100090.0,100080.0,0.41642382]
[1733630823815,0.01693547,100090.0,100080.0,0.56642382]
[1733630824511,0.01693547,100090.0,100080.0,0.76105015]
[1733630824762,0.01693547,100090.0,100080.0,0.80625015]
[1733630824985,0.01693547,100090.0,100080.0,0.8079845]
[1733630825378,0.01093547,100090.0,100080.0,0.8079845]
[1733630826565,0.01093547,100090.0,100080.0,0.64795357]
[1733630826769,0.01093547,100090.0,100080.0,0.8079845]
[1733630827792,0.01093547,100090.0,100080.0,0.82756802]
[1733630828513,0.01093547,100090.0,100080.0,0.9067243]
[1733630830339,0.0017348,100100.0,100090.0,0.61928077]
[1733630830553,0.0017348,100100.0,100090.0,0.71931028]
[1733630830693,0.0017348,100100.0,100090.0,0.72369719]
[1733630833968,0.0017348,100100.0,100090.0,0.76367619]
[1733630838441,0.0017348,100100.0,100090.0,0.64869575]
[1733630838658,0.0017348,100100.0,100090.0,0.68657619]
[1733630839271,0.0017348,100100.0,100090.0,0.6966246]
[1733630839579,0.0823348,100100.0,100090.0,0.46731783]
[1733630840182,0.0823348,100100.0,100090.0,0.40433883]
[1733630840588,0.2221948,100100.0,100090.0,0.40433883]
[1733630841703,0.30796847,100100.0,100090.0,0.01443532]
[1733630841896,0.30796847,100100.0,100090.0,0.00438691]
[1733630842841,0.30796847,100100.0,100090.0,0.02738691]
[1733630843498,0.30796847,100100.0,100090.0,0.00438691]
[1733630843733,0.2671948,100100.0,100090.0,0.00438691]
[1733630843943,0.26124767,100090.0,100080.0,0.01014151]
[1733630844261,0.0806,100080.0,100070.0,0.1416268]
[1733630844467,0.0806,100080.0,100070.0,0.24608557]
[1733630844887,0.0806,100080.0,100070.0,0.26908557]
[1733630845241,0.0806,100080.0,100070.0,0.41908557]
[1733630845594,0.0806,100080.0,100070.0,0.42108557]
[1733630845800,0.0806,100080.0,100070.0,0.42508557]
[1733630845998,0.26124767,100090.0,100080.0,0.023]
[1733630846762,0.26124767,100090.0,100080.0,0.02740399]
[1733630847097,0.26124767,100090.0,100080.0,0.023]
[1733630848432,0.26124767,100090.0,100080.0,0.02740399]
[1733630849206,0.26124767,100090.0,100080.0,0.023]
[1733630850966,0.26124767,100090.0,100080.0,0.0247336]
[1733630858811,0.26124767,100090.0,100080.0,0.1646216]
[1733630858997,0.0806,100090.0,100080.0,0.34014043]
[1733630859230,0.0834348,100100.0,100090.0,0.162874]
[1733630859465,0.0017348,100100.0,100090.0,0.33839283]
[1733630860287,0.0037348,100100.0,100090.0,0.33839283]
[1733630860727,0.0017348,100100.0,100090.0,0.26290351]
[1733630860951,0.0834348,100100.0,100090.0,0.26290351]
[1733630861690,0.0874348,100100.0,100090.0,0.26290351]
[1733630862139,0.0834348,100100.0,100090.0,0.26290351]
[1733630864754,0.0834348,100100.0,100090.0,0.27315887]
[1733630865312,0.2232948,100100.0,100090.0,0.27315887]
[1733630865512,0.2232948,100100.0,100090.0,0.13328487]
[1733630865869,0.2232948,100100.0,100090.0,0.27315887]
[1733630870157,0.2232948,100100.0,100090.0,0.13328487]
[1733630871491,0.2232948,100100.0,100090.0,0.27315887]
[1733630873255,0.0834348,100100.0,100090.0,0.27315887]
[1733630875555,0.0834348,100100.0,100090.0,0.36277617]
[1733630876696,0.0834348,100100.0,100090.0,0.36280119]
[1733630878109,0.0834348,100100.0,100090.0,0.36280962]
[1733630880638,0.0834348,100100.0,100090.0,0.49728574]
[1733630880843,0.0834348,100100.0,100090.0,0.61227685]
[1733630881047,0.0834348,100100.0,100090.0,0.47782557]
[1733630881572,0.0834348,100100.0,100090.0,0.61233896]
[1733630882403,0.0834348,100100.0,100090.0,0.94340979]
[1733630882611,0.0834348,100100.0,100090.0,0.90388137]
[1733630882828,0.0834348,100100.0,100090.0,1.0832733]
[1733630883055,0.0834348,100100.0,100090.0,0.90388137]
[1733630883262,0.0834348,100100.0,100090.0,1.0832733]
[1733630884318,0.0834348,100100.0,100090.0,1.0841401]
[1733630884944,0.0834348,100100.0,100090.0,1.30832908]
[1733630885153,0.0834348,100100.0,100090.0,1.00867741]
[1733630885385,0.0834348,100100.0,100090.0,1.1041881]
[1733630885608,0.0834348,100100.0,100090.0,1.32848416]
[1733630885824,0.0834348,100100.0,100090.0,1.23880857]
[1733630887190,0.0834348,100100.0,100090.0,1.21876057]
[1733630887886,0.0834348,100100.0,100090.0,1.30848783]
[1733630888088,0.0834348,100100.0,100090.0,1.21876057]
[1733630888316,0.0834348,100100.0,100090.0,1.21883066]
[1733630888517,0.0834348,100100.0,100090.0,1.08424718]
[1733630889399,0.0017348,100100.0,100090.0,1.44428584]
[1733630889579,0.0017348,100100.0,100090.0,1.32154427]
[1733630889836,0.0017348,100100.0,100090.0,1.59070452]
[1733630890036,0.0017348,100100.0,100090.0,1.41440846]
[1733630892181,0.0027348,100100.0,100090.0,1.42640846]
[1733630893610,0.0027348,100100.0,100090.0,1.27404577]
[1733630894713,0.0027348,100100.0,100090.0,1.27389576]
[1733630895150,0.0027348,100100.0,100090.0,1.19843307]
[1733630895370,0.0027348,100100.0,100090.0,1.27389576]
[1733630895984,0.0027348,100100.0,100090.0,1.34935845]
[1733630896202,0.0027348,100100.0,100090.0,1.27389576]
[1733630896880,0.0027348,100100.0,100090.0,1.03610674]
[1733630897107,0.0820348,100100.0,100090.0,1.06673363]
[1733630897348,0.0820348,100100.0,100090.0,1.24610414]
[1733630898238,0.0820348,100100.0,100090.0,1.3806433]
[1733630898459,0.1287348,100100.0,100090.0,1.13218061]
[1733630898731,0.1287348,100100.0,100090.0,1.07313847]
[1733630899864,0.1287348,100100.0,100090.0,1.24613847]
[1733630902469,0.1287348,100100.0,100090.0,1.47034077]
[1733630905881,0.1287348,100100.0,100090.0,1.39487808]
[1733630909521,0.1287348,100100.0,100090.0,1.39926357]
[1733630911742,0.1287348,100100.0,100090.0,1.3095661]
[1733630912412,0.1287348,100100.0,100090.0,1.4748108]
[1733630912645,0.1287348,100100.0,100090.0,1.47481135]
[1733630912876,0.1287348,100100.0,100090.0,1.38502879]
[1733630913290,0.1287348,100100.0,100090.0,1.3095661]
[1733630913506,0.1287348,100100.0,100090.0,1.39935054]
[1733630913930,0.1287348,100100.0,100090.0,1.40034287]
[1733630914164,0.1287348,100100.0,100090.0,1.31055752]
[1733630914385,0.1287348,100100.0,100090.0,1.40034424]
[1733630919368,0.1287348,100100.0,100090.0,1.17588085]
[1733630919823,0.1287348,100100.0,100090.0,1.40034424]
[1733630920581,0.1287348,100100.0,100090.0,1.47580693]
[1733630920809,0.1287348,100100.0,100090.0,1.38602021]
[1733630922141,0.1287348,100100.0,100090.0,1.47580999]
[1733630922378,0.1287348,100100.0,100090.0,1.38602021]
[1733630922600,0.1287348,100100.0,100090.0,1.47581019]
[1733630923325,0.1287348,100100.0,100090.0,1.4003475]
[1733630924025,0.1287348,100100.0,100090.0,1.31055752]
[1733630924528,0.1287348,100100.0,100090.0,1.4003479]
[1733630930166,0.1287348,100100.0,100090.0,1.40034684]
[1733630930367,0.1287348,100100.0,100090.0,1.31055752]
[1733630930574,0.1287348,100100.0,100090.0,1.40034648]
[1733630932421,0.1287348,100100.0,100090.0,1.47580917]
[1733630934441,0.1287348,100100.0,100090.0,1.40034648]
[1733630934880,0.1287348,100100.0,100090.0,1.17588309]
[1733630935217,0.2685948,100100.0,100090.0,1.07585358]
[1733630937404,0.2685948,100100.0,100090.0,1.30031697]
[1733630938084,0.2685948,100100.0,100090.0,1.30055584]
[1733630938312,0.2685948,100100.0,100090.0,1.30055589]
[1733630941270,0.2685948,100100.0,100090.0,1.30094838]
[1733630941491,0.2685948,100100.0,100090.0,1.21110363]
[1733630945001,0.2685948,100100.0,100090.0,1.07633651]
[1733630945444,0.2685948,100100.0,100090.0,1.21119487]
[1733630945678,0.2685948,100100.0,100090.0,1.07633651]
[1733630946160,0.2685948,100100.0,100090.0,1.21167585]
[1733630946354,0.2685948,100100.0,100090.0,1.07681854]
[1733630947424,0.2685948,100100.0,100090.0,1.21167449]
[1733630948316,0.2685948,100100.0,100090.0,1.07681854]
[1733630949369,0.2685948,100100.0,100090.0,1.21167238]
[1733630954267,0.2685948,100100.0,100090.0,0.92179838]
[1733630955756,0.2685948,100100.0,100090.0,0.92174719]
[1733630957448,0.2685948,100100.0,100090.0,1.06162119]
[1733630959039,0.1287348,100100.0,100090.0,1.06162119]
[1733630960503,0.0820348,100100.0,100090.0,1.06162119]
[1733630962608,0.0027348,100100.0,100090.0,1.23711339]
[1733630962792,0.0027348,100100.0,100090.0,1.00156985]
[1733630963021,0.0027348,100100.0,100090.0,1.19651893]
[1733630963427,0.0027348,100100.0,100090.0,1.24261893]
[1733630967554,0.0027348,100100.0,100090.0,1.16715624]
[1733630967780,0.0027348,100100.0,100090.0,1.24261893]
[1733630967979,0.0027348,100100.0,100090.0,1.18348692]
[1733630968294,0.0027348,100100.0,100090.0,1.40803838]
[1733630970436,0.0027348,100100.0,100090.0,1.40749433]
[1733630970686,0.0027348,100100.0,100090.0,1.36139433]
[1733630971316,0.0027348,100100.0,100090.0,1.09194073]
[1733630971530,0.0027348,100100.0,100090.0,1.36139433]
[1733630971765,0.0027348,100100.0,100090.0,1.09194073]
[1733630971974,0.0783348,100100.0,100090.0,1.26596365]
[1733630972195,0.0783348,100100.0,100090.0,1.17613874]
[1733630972607,0.0783348,100100.0,100090.0,1.31086376]
[1733630973458,0.2181948,100100.0,100090.0,1.17098976]
[1733630973674,0.0783348,100100.0,100090.0,1.31086376]
[1733630975215,0.0783348,100100.0,100090.0,1.31086562]
[1733630976483,0.0783348,100100.0,100090.0,1.38632831]
[1733630980033,0.0783348,100100.0,100090.0,1.38634202]
[1733630983041,0.2181948,100100.0,100090.0,1.38634202]
[1733630983703,0.2181948,100100.0,100090.0,1.31087933]
[1733630984339,0.2181948,100100.0,100090.0,1.17100533]
[1733630984546,0.2181948,100100.0,100090.0,1.26082648]
[1733630984990,0.2181948,100100.0,100090.0,1.26085343]
[1733630989693,0.2181948,100100.0,100090.0,1.40072743]
[1733630993252,0.2181948,100100.0,100090.0,1.26085343]
[1733630994971,0.2181948,100100.0,100090.0,1.26085837]
[1733630996050,0.2181948,100100.0,100090.0,1.26085766]
[1733630996756,0.2181948,100100.0,100090.0,1.26091671]
[1733630997374,0.2181948,100100.0,100090.0,1.0363486]
[1733630997670,0.2181948,100100.0,100090.0,1.26091671]
[1733631000004,0.2181948,100100.0,100090.0,1.26090544]
[1733631000359,0.2181948,100100.0,100090.0,1.03633997]
[1733631001485,0.2181948,100100.0,100090.0,1.26090544]
[1733631002146,0.2181948,100100.0,100090.0,1.03633997]
[1733631002349,0.2181948,100100.0,100090.0,1.17621397]
[1733631006513,0.2181948,100100.0,100090.0,1.03633997]
[1733631013474,0.2181948,100100.0,100090.0,1.26090544]
[1733631014169,0.25896847,100100.0,100090.0,1.01087593]
[1733631014331,0.30466847,100100.0,100090.0,0.59640272]
[1733631014536,0.30466847,100100.0,100090.0,0.59201723]
[1733631014789,0.30466847,100100.0,100090.0,0.12569299]
[1733631015880,0.30466847,100100.0,100090.0,0.11428371]
[1733631016315,0.30466847,100100.0,100090.0,0.11864593]
[1733631016743,0.30466847,100100.0,100090.0,0.25338521]
[1733631016953,0.0783348,100100.0,100090.0,0.76054751]
[1733631017156,0.0027348,100100.0,100090.0,1.30463936]
[1733631017353,0.0027348,100100.0,100090.0,1.29351317]
[1733631017593,0.0027348,100100.0,100090.0,1.15877389]
[1733631017730,0.0027348,100100.0,100090.0,1.15886353]
[1733631018231,0.0027348,100100.0,100090.0,1.24871106]
[1733631019973,0.0027348,100100.0,100090.0,1.17001106]
[1733631020330,0.0027348,100100.0,100090.0,1.17087826]
[1733631021390,0.0839348,100100.0,100090.0,0.93254157]
[1733631021601,0.2237948,100100.0,100090.0,0.97742147]
[1733631021816,0.2237948,100100.0,100090.0,1.06726192]
[1733631022259,0.0839348,100100.0,100090.0,1.11729547]
[1733631022496,0.2237948,100100.0,100090.0,0.9774041]
[1733631022723,0.2237948,100100.0,100090.0,1.0672453]
[1733631022937,0.2237948,100100.0,100090.0,0.9774041]
[1733631023167,0.0839348,100100.0,100090.0,0.9774041]
[1733631023385,0.0839348,100100.0,100090.0,1.28258228]
[1733631023815,0.0839348,100100.0,100090.0,1.05286679]
[1733631024247,0.0839348,100100.0,100090.0,1.1427089]
[1733631024464,0.0839348,100100.0,100090.0,1.05286679]
[1733631025090,0.0839348,100100.0,100090.0,0.91810498]
[1733631025292,0.0839348,100100.0,100090.0,0.84264229]
[1733631025501,0.2237948,100100.0,100090.0,0.84264229]
[1733631025702,0.2237948,100100.0,100090.0,0.97740786]
[1733631025914,0.2237948,100100.0,100090.0,0.9774086]
[1733631026555,0.2237948,100100.0,100090.0,0.84264229]
[1733631027649,0.2237948,100100.0,100090.0,0.97741199]
[1733631029615,0.26456847,100100.0,100090.0,0.87738248]
[1733631029828,0.31106847,100100.0,100090.0,0.96723255]
[1733631030044,0.31106847,100100.0,100090.0,0.74262953]
[1733631032278,0.31106847,100100.0,100090.0,0.74266243]
[1733631033755,0.31106847,100100.0,100090.0,0.96728061]
[1733631041804,0.31106847,100100.0,100090.0,0.96724661]
[1733631043099,0.31106847,100100.0,100090.0,0.5629482]
[1733631043319,0.31106847,100100.0,100090.0,0.23129716]
[1733631044165,0.31106847,100100.0,100090.0,0.41098534]
[1733631044382,0.31106847,100100.0,100090.0,0.74263638]
[1733631046122,0.31106847,100100.0,100090.0,0.56295464]
[1733631047274,0.31106847,100100.0,100090.0,0.23129716]
[1733631047925,0.31106847,100100.0,100090.0,0.09653103]
[1733631048811,0.2702948,100100.0,100090.0,0.09653103]
[1733631052077,0.28043214,100100.0,100090.0,0.09653103]
[1733631052492,0.30499211,100100.0,100090.0,0.09653103]
[1733631052700,0.2702948,100100.0,100090.0,0.09653103]
[1733631053321,0.2702948,100100.0,100090.0,0.00668694]
[1733631055238,0.2702948,100100.0,100090.0,0.09653103]
[1733631057570,0.31106847,100100.0,100090.0,0.09653103]
[1733631058193,0.26456847,100100.0,100090.0,0.23129716]
[1733631058407,0.26456847,100100.0,100090.0,0.56282943]
[1733631058650,0.26456847,100100.0,100090.0,0.56273524]
[1733631059896,0.2237948,100100.0,100090.0,0.56273524]
[1733631060101,0.2237948,100100.0,100090.0,0.74235463]
[1733631061454,0.2237948,100100.0,100090.0,0.74233465]
[1733631063010,0.26456847,100100.0,100090.0,0.74233465]
[1733631064479,0.26456847,100100.0,100090.0,0.75258737]
[1733631064681,0.26456847,100100.0,100090.0,0.75268304]
[1733631065043,0.2237948,100100.0,100090.0,0.75268304]
[1733631065242,0.26456847,100100.0,100090.0,0.75268304]
[1733631065451,0.2237948,100100.0,100090.0,0.75268304]
[1733631066160,0.26456847,100100.0,100090.0,0.75268304]
[1733631066293,0.2237948,100100.0,100090.0,0.75268304]
[1733631067506,0.2237948,100100.0,100090.0,0.97723037]
[1733631067937,0.26456847,100100.0,100090.0,0.97723037]
[1733631069527,0.2237948,100100.0,100090.0,0.97766146]
[1733631069736,0.26456847,100100.0,100090.0,0.97766146]
[1733631075698,0.26456847,100100.0,100090.0,0.75301332]
[1733631076114,0.26456847,100100.0,100090.0,0.97766146]
[1733631078290,0.26456847,100100.0,100090.0,0.96740874]
[1733631079711,0.26456847,100100.0,100090.0,0.56304209]
[1733631079921,0.26456847,100100.0,100090.0,0.7427606]
[1733631089091,0.26456847,100100.0,100090.0,0.74302251]
[1733631099865,0.26456847,100100.0,100090.0,0.56331204]
[1733631100059,0.26456847,100100.0,100090.0,0.74311775]
[1733631102716,0.2237948,100100.0,100090.0,0.74311775]
[1733631102924,0.2702948,100100.0,100090.0,0.74311775]
[1733631103137,0.2702948,100100.0,100090.0,0.09658979]
[1733631106492,0.26834665,100100.0,100090.0,0.09658979]
[1733631106697,0.26834665,100100.0,100090.0,0.00668694]
[1733631108052,0.26834665,100100.0,100090.0,0.09658979]
[1733631108264,0.26834665,100100.0,100090.0,0.00668694]
[1733631108416,0.26834665,100100.0,100090.0,0.09658979]
[1733631108623,0.26834665,100100.0,100090.0,0.00668694]
[1733631109139,0.26834665,100100.0,100090.0,0.09658979]
[1733631109348,0.27008105,100100.0,100090.0,0.09658979]
[1733631109506,0.27008105,100100.0,100090.0,0.00668694]
[1733631113337,0.4699259,100100.0,100090.0,0.00668694]
[1733631113541,0.55970808,100100.0,100090.0,0.00668694]
[1733631113751,0.45989274,100100.0,100090.0,0.00668694]
[1733631114180,0.45989274,100100.0,100090.0,0.00522942]
[1733631114591,0.37011056,100100.0,100090.0,0.00722942]
[1733631115471,0.36932391,100100.0,100090.0,0.00722942]
[1733631115683,0.37032391,100100.0,100090.0,0.01122942]
[1733631120640,0.31106807,100100.0,100090.0,0.01122942]
[1733631120939,0.18336807,100100.0,100090.0,0.23584363]
[1733631121157,0.18461689,100100.0,100090.0,0.23584363]
[1733631121385,0.18461689,100100.0,100090.0,0.415535]
[1733631121615,0.18461689,100100.0,100090.0,0.74716003]
[1733631122947,0.18336807,100100.0,100090.0,0.74716003]
[1733631124843,0.18336807,100100.0,100090.0,0.88703403]
[1733631125288,0.18461687,100100.0,100090.0,0.88703403]
[1733631125505,0.0027344,100100.0,100090.0,0.98706354]
[1733631125730,0.0027344,100100.0,100090.0,1.13822623]
[1733631125951,0.0027344,100100.0,100090.0,1.36284044]
[1733631126168,0.0027344,100100.0,100090.0,1.27299476]
[1733631126633,0.0027344,100100.0,100090.0,1.22807192]
[1733631126907,0.0027344,100100.0,100090.0,1.22799997]
[1733631127121,0.0027344,100100.0,100090.0,1.00345771]
[1733631127344,0.0027344,100100.0,100090.0,1.2279527]
[1733631127995,0.0027344,100100.0,100090.0,1.00345771]
[1733631128450,0.0027344,100100.0,100090.0,1.01367384]
[1733631128658,0.0027344,100100.0,100090.0,0.74413678]
[1733631128873,0.0027344,100100.0,100090.0,1.01367384]
[1733631129332,0.0027344,100100.0,100090.0,1.23807738]
[1733631130432,0.0027344,100100.0,100090.0,1.26910047]
[1733631130669,0.0027344,100100.0,100090.0,1.31696286]
[1733631130891,0.0017344,100110.0,100090.0,1.99469217]
[1733631131136,0.0017344,100110.0,100100.0,0.55649616]
[1733631131340,0.0017344,100110.0,100100.0,0.66581603]
[1733631131545,0.0017344,100110.0,100100.0,0.80567603]
[1733631131789,0.0017344,100110.0,100100.0,1.13730106]
[1733631132428,0.00190691,100110.0,100100.0,1.13730106]
[1733631133309,0.00190691,100110.0,100100.0,1.27179596]
[1733631134885,0.00190691,100110.0,100100.0,1.36143579]
[1733631135090,0.00290691,100110.0,100100.0,1.36643579]
[1733631135305,0.00190691,100110.0,100100.0,1.36143579]
[1733631135519,0.00290691,100110.0,100100.0,1.36743579]
[1733631135708,0.00290691,100110.0,100100.0,1.36943579]
[1733631136359,0.00290691,100110.0,100100.0,1.36743579]
[1733631136583,0.00290691,100110.0,100100.0,1.36997794]
[1733631137030,0.00290691,100110.0,100100.0,1.14595156]
[1733631137936,0.00290691,100110.0,100100.0,1.29595156]
[1733631139735,0.00290691,100110.0,100100.0,1.21475156]
[1733631140371,0.00290691,100110.0,100100.0,1.03553046]
[1733631141032,0.00290691,100110.0,100100.0,0.86003826]
[1733631141244,0.22015291,100110.0,100100.0,0.39483349]
[1733631141457,0.22015291,100110.0,100100.0,0.39478229]
[1733631141658,0.08030691,100110.0,100100.0,0.39478229]
[1733631142169,0.08030691,100110.0,100100.0,0.30522294]
[1733631143006,0.08030691,100110.0,100100.0,0.39478229]
[1733631143218,0.08030691,100110.0,100100.0,0.30522294]
[1733631143456,0.08030691,100110.0,100100.0,0.39478229]
[1733631144101,0.08030691,100110.0,100100.0,0.30522294]
[1733631144515,0.08030691,100110.0,100100.0,0.39478229]
[1733631144742,0.08030691,100110.0,100100.0,0.30522294]
[1733631154086,0.08030691,100110.0,100100.0,0.16536294]
[1733631154297,0.22015291,100110.0,100100.0,0.16536294]
[1733631155258,0.22015291,100110.0,100100.0,0.16623004]
[1733631156891,0.08030691,100110.0,100100.0,0.30609004]
[1733631158586,0.08030691,100110.0,100100.0,0.39565513]
[1733631159881,0.08030691,100110.0,100100.0,0.30609004]
[1733631160123,0.08030691,100110.0,100100.0,0.39565513]
[1733631160744,0.08030691,100110.0,100100.0,0.39571041]
[1733631161196,0.08030691,100110.0,100100.0,0.53014097]
[1733631161426,0.08030691,100110.0,100100.0,0.39571041]
[1733631162461,0.08030691,100110.0,100100.0,0.53014097]
[1733631162876,0.08030691,100110.0,100100.0,0.86104201]
[1733631163091,0.22015291,100110.0,100100.0,0.53014097]
[1733631163646,0.22015291,100110.0,100100.0,1.04044281]
[1733631163845,0.22015291,100110.0,100100.0,0.86120206]
[1733631164857,0.22015291,100110.0,100100.0,1.04044281]
[1733631165535,0.22015291,100110.0,100100.0,1.04094569]
[1733631165746,0.22015291,100110.0,100100.0,1.2652221]
[1733631168178,0.22015291,100110.0,100100.0,1.17551154]
[1733631168407,0.22015291,100110.0,100100.0,1.26528257]
[1733631168646,0.22015291,100110.0,100100.0,1.17551154]
[1733631168853,0.22015291,100110.0,100100.0,1.2652847]
[1733631169057,0.26092658,100110.0,100100.0,0.88565154]
[1733631169275,0.30732658,100110.0,100100.0,0.75116893]
[1733631169709,0.30732658,100110.0,100100.0,0.57174781]
[1733631169917,0.26655291,100110.0,100100.0,0.01623004]
[1733631170350,0.36658242,100110.0,100100.0,0.01623004]
[1733631170993,0.36558242,100110.0,100100.0,0.01023004]
[1733631171197,0.36558242,100110.0,100100.0,0.01123004]
[1733631171421,0.36558242,100110.0,100100.0,0.01023004]
[1733631171644,0.36558242,100110.0,100100.0,0.00623004]
[1733631171885,0.36558242,100110.0,100100.0,0.00723004]
[1733631176212,0.36758242,100110.0,100100.0,0.00723004]
[1733631176438,0.37762266,100110.0,100100.0,0.00723004]
[1733631177626,0.37762266,100110.0,100100.0,0.00623004]
[1733631177627,0.37562266,100110.0,100100.0,0.00623004]
[1733631177957,0.37962266,100110.0,100100.0,0.00623004]
[1733631178061,0.38162266,100110.0,100100.0,0.00623004]
[1733631180605,0.27155291,100110.0,100100.0,0.00623004]
[1733631180813,0.26592658,100110.0,100100.0,0.00623004]
[1733631181890,0.22515291,100110.0,100100.0,0.00623004]
[1733631182108,0.26392658,100110.0,100100.0,0.00623004]
[1733631182326,0.25992658,100110.0,100100.0,0.00623004]
[1733631182754,0.21915291,100110.0,100100.0,0.00723004]
[1733631184067,0.07930691,100110.0,100100.0,0.14709004]
[1733631184331,0.00190691,100110.0,100100.0,0.44693704]
[1733631184576,0.00190691,100110.0,100100.0,0.7780441]
[1733631186346,0.00190691,100110.0,100100.0,0.37147435]
[1733631187383,0.00190691,100110.0,100100.0,0.23161435]
[1733631187592,0.22195291,100110.0,100100.0,0.00723004]
[1733631188229,0.26272658,100110.0,100100.0,0.00723004]
[1733631189888,0.22195291,100110.0,100100.0,0.00723004]
[1733631190094,0.26272658,100110.0,100100.0,0.00723004]
[1733631190777,0.22195291,100110.0,100100.0,0.00723004]
[1733631191178,0.26272658,100110.0,100100.0,0.00723004]
[1733631191438,0.22195291,100110.0,100100.0,0.00723004]
[1733631192288,0.26272658,100110.0,100100.0,0.00723004]
[1733631192840,0.22195291,100110.0,100100.0,0.00723004]
[1733631193462,0.26272658,100110.0,100100.0,0.00723004]
[1733631193663,0.22195291,100110.0,100100.0,0.00723004]
[1733631194398,0.22195291,100110.0,100100.0,0.09694957]
[1733631194621,0.08210691,100110.0,100100.0,0.23680957]
[1733631195366,0.00190691,100110.0,100100.0,0.31227226]
[1733631195567,0.00190691,100110.0,100100.0,0.23680957]
[1733631195801,0.00190691,100110.0,100100.0,0.44685156]
[1733631196138,0.00190691,100110.0,100100.0,1.03304996]
[1733631196344,0.00190691,100110.0,100100.0,1.22225163]
[1733631196549,0.00190691,100110.0,100100.0,1.14678894]
[1733631196755,0.00190691,100110.0,100100.0,1.37225163]
[1733631197164,0.00190691,100110.0,100100.0,1.50683093]
[1733631197794,0.00190691,100110.0,100100.0,1.43136824]
[1733631198448,0.00190691,100110.0,100100.0,1.52983093]
[1733631198654,0.00190691,100110.0,100100.0,1.44115163]
[1733631199080,0.00190691,100110.0,100100.0,1.26171256]
[1733631200361,0.00190691,100110.0,100100.0,1.44110557]
[1733631201337,0.00190691,100110.0,100100.0,1.44010557]
[1733631201755,0.00290691,100110.0,100100.0,1.44510557]
[1733631202880,0.00290691,100110.0,100100.0,1.37364288]
[1733631203060,0.00290691,100110.0,100100.0,1.37333787]
[1733631206023,0.00290691,100110.0,100100.0,1.29787518]
[1733631206226,0.00290691,100110.0,100100.0,1.37333787]
[1733631207187,0.00290691,100110.0,100100.0,1.50781991]
[1733631207399,0.00290691,100110.0,100100.0,1.43235722]
[1733631207603,0.00290691,100110.0,100100.0,0.63874484]
[1733631207848,0.00290691,100110.0,100100.0,1.17665738]
[1733631208054,0.00290691,100110.0,100100.0,1.50759967]
[1733631208698,0.00290691,100110.0,100100.0,1.42809967]